[Event "Czech Open-E Teams 2022"]
[Site "Pardubice"]
[Date "2022.07.15"]
[Round "3.37"]
[White "Novotny, Michal"]
[Black "Obsivac, Josef"]
[Result "1/2-1/2"]
[ECO "B51"]
[WhiteElo "2223"]
[BlackElo "2272"]
[Annotator "ChessBase"]
[PlyCount "60"]
[EventDate "2022.07.14"]
[EventType "team-tourn"]
[EventCountry "CZE"]
[SourceTitle "playchess.com"]
[Source "ChessBase"]
[SourceQuality "1"]
[TimeControl "5400+30"]

1. e4 {[%emt 0:00:05]} c5 {[%emt 0:00:28]} 2. Nf3 {[%emt 0:00:10]} d6 {[%emt 0:01:41]} 3. Bb5+ {[%emt 0:00:08]} Nd7 {[%emt 0:00:51]} 4. Ba4 {[%emt 0:01:04]} Ngf6 {[%emt 0:02:33]} 5. Qe2 {[%emt 0:02:28]} e6 {[%emt 0:02:03]} 6. O-O {[%emt 0:00:11]} Be7 {[%emt 0:00:33]} 7. c3 {[%emt 0:00:24]} a6 {[%emt 0:03:47]} 8. d4 {[%emt 0:00:53]} b5 {[%emt 0:02:20]} 9. Bc2 {[%emt 0:00:31]} Bb7 {[%emt 0:03:38]} 10. Nbd2 {[%emt 0:02:09]} cxd4 {[%emt 0:02:55]} 11. cxd4 {[%emt 0:00:26]} Rc8 {[%emt 0:01:06]} 12. Bd3 {[%emt 0:01:23]} Nb6 {[%emt 0:09:52]} 13. b3 {[%emt 0:02:42]} O-O {[%emt 0:01:54]} 14. a4 {[%emt 0:07:10]} bxa4 {[%emt 0:07:32]} 15. bxa4 {[%emt 0:09:57]} d5 {[%emt 0:00:12]} 16. e5 {[%emt 0:00:37]} Ne4 {[%emt 0:00:26]} 17. a5 {[%emt 0:08:46]} Na4 {[%emt 0:14:16]} 18. Bxe4 {[%emt 0:14:33]} dxe4 {[%emt 0:02:21]} 19. Nxe4 {[%emt 0:00:11]} Nc3 {[%emt 0:07:45]} 20. Nxc3 {[%emt 0:05:18]} Rxc3 {[%emt 0:00:02]} 21. Qb2 {[%emt 0:04:27]} Qc8 {[%emt 0:05:24]} 22. Be3 {[%emt 0:05:03]} Bd5 {[%emt 0:05:41]} 23. Rfc1 {[%emt 0:00:52]} Rxc1+ {[%emt 0:00:10]} 24. Rxc1 {[%emt 0:01:58]} Qa8 {[%emt 0:00:08]} 25. Ne1 {[%emt 0:02:56]} Rb8 {[%emt 0:00:36]} 26. Qc2 {[%emt 0:01:21]} h6 {[%emt 0:05:08]} 27. f3 {[%emt 0:02:08]} Rb3 {[%emt 0:05:44]} 28. Qc8+ {[%emt 0:09:05]} Qxc8 {[%emt 0:00:03]} 29. Rxc8+ {[%emt 0:00:06]} Kh7 {[%emt 0:00:08]} 30. Bd2 {[%emt 0:00:06]} Bb4 {[%emt 0:11:01]} 1/2-1/2

[Event "Czech Open-E Teams 2022"]
[Site "Pardubice"]
[Date "2022.07.15"]
[Round "3.38"]
[White "Zeman, Matyas"]
[Black "Simunek, Jakub Simon"]
[Result "1-0"]
[ECO "A04"]
[WhiteElo "2262"]
[BlackElo "1887"]
[Annotator "ChessBase"]
[PlyCount "101"]
[EventDate "2022.07.14"]
[EventType "team-tourn"]
[EventCountry "CZE"]
[SourceTitle "playchess.com"]
[Source "ChessBase"]
[SourceQuality "1"]
[TimeControl "5400+30"]

1. Nf3 {[%emt 0:00:09]} e6 {[%emt 0:00:53]} 2. g3 {[%emt 0:00:11]} d5 {[%emt 0:00:02]} 3. Bg2 {[%emt 0:00:06]} Nf6 {[%emt 0:00:36]} 4. O-O {[%emt 0:00:15]} Be7 {[%emt 0:00:33]} 5. c4 {[%emt 0:00:45]} O-O {[%emt 0:02:04]} 6. d4 {[%emt 0:03:01]} dxc4 {[%emt 0:05:11]} 7. Na3 {[%emt 0:01:02]} c5 {[%emt 0:04:02]} 8. Nxc4 {[%emt 0:03:39]} Nc6 {[%emt 0:01:35]} 9. dxc5 {[%emt 0:01:55]} Bxc5 {[%emt 0:01:25]} 10. Bf4 {[%emt 0:13:00]} Nd5 {[%emt 0:07:51]} 11. Rc1 {[%emt 0:00:16]} Qe7 {[%emt 0:05:21]} 12. Nce5 {[%emt 0:09:30]} Nxf4 {[%emt 0:09:17]} 13. gxf4 {[%emt 0:02:13]} Nb4 {[%emt 0:00:25]} 14. a3 {[%emt 0:04:04]} Nd5 {[%emt 0:01:04]} 15. e3 {[%emt 0:00:09]} Nxe3 16. fxe3 {[%emt 0:00:05]} Bxe3+ {[%emt 0:09:21]} 17. Kh1 {[%emt 0:00:05]} Bxc1 {[%emt 0:00:04]} 18. Qxc1 {[%emt 0:00:04]} Bd7 {[%emt 0:01:16]} 19. Qc7 {[%emt 0:00:56]} Rfd8 {[%emt 0:05:17]} 20. Rd1 {[%emt 0:02:23]} Rac8 {[%emt 0:02:19]} 21. Qxb7 {[%emt 0:00:17]} Rb8 {[%emt 0:02:36]} 22. Qxa7 {[%emt 0:04:06]} Ra8 {[%emt 0:01:25]} 23. Qf2 {[%emt 0:08:23]} Ba4 {[%emt 0:04:32]} 24. Re1 {[%emt 0:01:58]} Rac8 {[%emt 0:04:54]} 25. f5 {[%emt 0:17:32]} f6 {[%emt 0:04:26]} 26. Qh4 {[%emt 0:00:37]} Qe8 {[%emt 0:07:58]} 27. Ng4 {[%emt 0:01:41]} e5 {[%emt 0:01:27]} 28. Rg1 {[%emt 0:02:09]} Rd6 {[%emt 0:04:28]} 29. Nd2 {[%emt 0:02:46]} Bc6 {[%emt 0:02:55]} 30. Ne4 {[%emt 0:00:48]} Bxe4 {[%emt 0:00:29]} 31. Bxe4 {[%emt 0:00:04]} Kh8 {[%emt 0:00:21]} 32. Qg3 {[%emt 0:02:55]} Qe7 {[%emt 0:00:53]} 33. Ne3 {[%emt 0:01:03]} Rcd8 {[%emt 0:04:41]} 34. Qf3 {[%emt 0:01:59]} Rd4 {[%emt 0:02:00]} 35. Rc1 {[%emt 0:02:23]} h6 {[%emt 0:02:17]} 36. Rc3 {[%emt 0:01:13]} Qd7 {[%emt 0:01:55]} 37. b3 {[%emt 0:04:00]} Qd6 {[%emt 0:01:30]} 38. b4 {[%emt 0:00:14]} Qa6 {[%emt 0:00:03]} 39. Bb7 {[%emt 0:10:21]} e4 {[%emt 0:01:41]} 40. Bxa6 {[%emt 0:00:43]} exf3 {[%emt 0:00:04]} 41. Kg1 {[%emt 0:00:23]} Rd2 {[%emt 0:00:47]} 42. Rc2 {[%emt 0:01:29]} Rxc2 {[%emt 0:00:22]} 43. Nxc2 {[%emt 0:00:04]} f2+ {[%emt 0:00:05]} 44. Kg2 {[%emt 0:00:49]} Rd1 {[%emt 0:01:12]} 45. Ne3 {[%emt 0:00:27]} Ra1 {[%emt 0:00:08]} 46. Kxf2 {[%emt 0:00:06]} Rxa3 {[%emt 0:00:17]} 47. Bc4 {[%emt 0:00:16]} g6 {[%emt 0:00:42]} 48. fxg6 Kg7 49. Bf7 {[%emt 0:00:52]} Ra1 {[%emt 0:01:13]} 50. Nf5+ {[%emt 0:00:12]} Kf8 {[%emt 0:00:13]} 51. Be6 {[%emt 0:00:22]} 1-0

[Event "Czech Open-E Teams 2022"]
[Site "Pardubice"]
[Date "2022.07.15"]
[Round "3.39"]
[White "Roubal, Matyas"]
[Black "Bures, Vit"]
[Result "0-1"]
[ECO "C49"]
[WhiteElo "1909"]
[BlackElo "2112"]
[Annotator "ChessBase"]
[PlyCount "110"]
[EventDate "2022.07.14"]
[EventType "team-tourn"]
[EventCountry "CZE"]
[SourceTitle "playchess.com"]
[Source "ChessBase"]
[SourceQuality "1"]
[TimeControl "5400+30"]

1. e4 {[%emt 0:00:04]} e5 {[%emt 0:00:02]} 2. Nf3 {[%emt 0:00:06]} Nc6 {[%emt 0:00:02]} 3. Nc3 {[%emt 0:00:21]} Nf6 {[%emt 0:00:02]} 4. Bb5 {[%emt 0:00:06]} Bb4 {[%emt 0:00:05]} 5. O-O {[%emt 0:00:10]} O-O {[%emt 0:00:02]} 6. d3 {[%emt 0:00:17]} d6 {[%emt 0:00:03]} 7. Bg5 {[%emt 0:00:12]} Ne7 {[%emt 0:00:10]} 8. Nh4 {[%emt 0:10:19]} c6 {[%emt 0:01:59]} 9. Ba4 {[%emt 0:01:31]} Nd7 {[%emt 0:00:36]} 10. Nf5 {[%emt 0:01:56]} f6 {[%emt 0:00:38]} 11. Nxe7+ {[%emt 0:01:59]} Qxe7 {[%emt 0:02:18]} 12. Bb3+ {[%emt 0:01:51]} Kh8 {[%emt 0:00:18]} 13. Be3 {[%emt 0:00:08]} Nc5 {[%emt 0:01:10]} 14. f3 {[%emt 0:03:54]} a5 {[%emt 0:01:20]} 15. a3 {[%emt 0:01:28]} Nxb3 {[%emt 0:01:31]} 16. cxb3 {[%emt 0:00:11]} Bxc3 {[%emt 0:03:11]} 17. bxc3 {[%emt 0:00:05]} Be6 {[%emt 0:00:39]} 18. d4 {[%emt 0:01:41]} d5 {[%emt 0:02:13]} 19. a4 {[%emt 0:10:51]} dxe4 {[%emt 0:04:38]} 20. fxe4 {[%emt 0:00:11]} exd4 {[%emt 0:00:23]} 21. cxd4 {[%emt 0:00:25]} Bf7 {[%emt 0:00:40]} 22. e5 {[%emt 0:09:16]} fxe5 {[%emt 0:01:56]} 23. dxe5 {[%emt 0:01:25]} Qxe5 {[%emt 0:03:43]} 24. Bf2 {[%emt 0:09:24]} Bd5 {[%emt 0:04:28]} 25. Qc2 {[%emt 0:05:37]} h6 {[%emt 0:04:29]} 26. Rae1 {[%emt 0:01:56]} Qg5 {[%emt 0:00:32]} 27. Bd4 {[%emt 0:09:00]} Rxf1+ {[%emt 0:03:16]} 28. Rxf1 {[%emt 0:01:45]} Re8 {[%emt 0:00:20]} 29. Qb2 {[%emt 0:08:59]} Qg4 {[%emt 0:02:59]} 30. h3 {[%emt 0:06:02]} Qg3 {[%emt 0:02:39]} 31. Qd2 {[%emt 0:01:38]} Kh7 {[%emt 0:01:07]} 32. Qf2 {[%emt 0:01:20]} Qxf2+ {[%emt 0:01:34]} 33. Rxf2 {[%emt 0:00:13]} Re1+ {[%emt 0:04:07]} 34. Kh2 {[%emt 0:00:07]} Re4 {[%emt 0:01:00]} 35. Bc3 {[%emt 0:00:41]} b6 {[%emt 0:00:24]} 36. Rb2 {[%emt 0:03:03]} c5 {[%emt 0:06:44]} 37. Rd2 {[%emt 0:01:04]} Bf7 {[%emt 0:01:40]} 38. Rd7 {[%emt 0:02:29]} Kg6 {[%emt 0:00:16]} 39. Rd6+ {[%emt 0:01:32]} Re6 {[%emt 0:00:13]} 40. Rxe6+ {[%emt 0:00:23]} Bxe6 {[%emt 0:00:04]} 41. Be5 {[%emt 0:00:04]} Bxb3 {[%emt 0:00:28]} 42. Bc7 {[%emt 0:00:04]} Bxa4 {[%emt 0:00:21]} 43. Bxb6 {[%emt 0:00:05]} c4 {[%emt 0:00:34]} 44. Bxa5 {[%emt 0:00:04]} Kf5 {[%emt 0:00:06]} 45. g4+ {[%emt 0:02:30]} Ke4 {[%emt 0:00:25]} 46. Bc3 {[%emt 0:00:04]} g6 {[%emt 0:01:04]} 47. Kg3 {[%emt 0:03:37]} Kd3 {[%emt 0:00:20]} 48. Bg7 {[%emt 0:00:07]} h5 {[%emt 0:00:15]} 49. Kf4 {[%emt 0:03:23]} c3 {[%emt 0:02:15]} 50. Kg5 {[%emt 0:00:49]} c2 {[%emt 0:00:19]} 51. Bb2 {[%emt 0:00:06]} Be8 {[%emt 0:00:17]} 52. Kf6 {[%emt 0:00:06]} hxg4 {[%emt 0:00:53]} 53. hxg4 {[%emt 0:00:13]} Kd2 {[%emt 0:00:06]} 54. Ke7 {[%emt 0:00:04]} Bb5 {[%emt 0:00:16]} 55. Kf6 {[%emt 0:00:26]} Bd3 {[%emt 0:00:15]} 0-1

[Event "Czech Open-E Teams 2022"]
[Site "Pardubice"]
[Date "2022.07.15"]
[Round "3.40"]
[White "Vavra, Michal"]
[Black "Vana, Jan"]
[Result "1-0"]
[ECO "A05"]
[WhiteElo "1939"]
[BlackElo "1708"]
[Annotator "ChessBase"]
[PlyCount "91"]
[EventDate "2022.07.14"]
[EventType "team-tourn"]
[EventCountry "CZE"]
[SourceTitle "playchess.com"]
[Source "ChessBase"]
[SourceQuality "1"]
[TimeControl "5400+30"]

1. Nf3 {[%emt 0:00:06]} Nf6 {[%emt 0:00:39]} 2. d4 {[%emt 0:00:08]} c5 {[%emt 0:01:41]} 3. c4 {[%emt 0:01:55]} cxd4 {[%emt 0:01:23]} 4. Nxd4 {[%emt 0:01:58]} e5 {[%emt 0:03:41]} 5. Nb5 {[%emt 0:05:10]} d5 {[%emt 0:06:43]} 6. cxd5 {[%emt 0:05:17]} Bc5 {[%emt 0:04:08]} 7. e3 {[%emt 0:07:12]} a6 {[%emt 0:07:57]} 8. N5c3 {[%emt 0:01:08]} O-O {[%emt 0:01:02]} 9. Bd3 {[%emt 0:07:14]} b5 {[%emt 0:05:55]} 10. O-O {[%emt 0:06:02]} Nbd7 {[%emt 0:13:15]} 11. Nd2 {[%emt 0:13:34]} Bb7 {[%emt 0:13:42]} 12. e4 {[%emt 0:04:18]} Re8 {[%emt 0:07:24]} 13. Nb3 {[%emt 0:04:06]} Bb6 {[%emt 0:03:12]} 14. Qe2 {[%emt 0:09:33]} h6 {[%emt 0:03:35]} 15. Bd2 {[%emt 0:02:24]} Nf8 {[%emt 0:02:12]} 16. Rac1 {[%emt 0:03:48]} Rc8 {[%emt 0:02:15]} 17. Be3 {[%emt 0:06:34]} g5 {[%emt 0:04:28]} 18. g3 {[%emt 0:03:56]} Ng6 {[%emt 0:01:38]} 19. Rfd1 {[%emt 0:01:32]} Bxe3 {[%emt 0:03:37]} 20. Qxe3 {[%emt 0:01:35]} Ng4 {[%emt 0:01:23]} 21. Qf3 {[%emt 0:02:20]} h5 {[%emt 0:00:55]} 22. Nd2 {[%emt 0:03:55]} Qd7 {[%emt 0:02:43]} 23. h3 {[%emt 0:01:24]} Nh6 {[%emt 0:00:26]} 24. Qxh5 {[%emt 0:00:11]} Kg7 {[%emt 0:00:10]} 25. Qxg5 {[%emt 0:01:08]} Qxh3 {[%emt 0:00:29]} 26. Bf1 {[%emt 0:00:23]} Qd7 {[%emt 0:00:21]} 27. Qh5 {[%emt 0:02:53]} Rh8 {[%emt 0:03:26]} 28. Bh3 {[%emt 0:00:19]} Qd8 {[%emt 0:00:18]} 29. Qf3 {[%emt 0:02:00]} Qg5 {[%emt 0:01:48]} 30. Bg2 {[%emt 0:01:10]} Rh7 {[%emt 0:01:40]} 31. Nf1 {[%emt 0:00:38]} Rch8 {[%emt 0:01:04]} 32. Ne3 {[%emt 0:00:26]} Bc8 {[%emt 0:00:28]} 33. Nf5+ {[%emt 0:01:46]} Nxf5 {[%emt 0:02:11]} 34. exf5 {[%emt 0:00:02]} Bxf5 {[%emt 0:00:52]} 35. Ne4 {[%emt 0:00:26]} Bxe4 {[%emt 0:00:33]} 36. Qxe4 {[%emt 0:00:03]} Nf4 {[%emt 0:00:21]} 37. Bf3 {[%emt 0:01:23]} Rh3 {[%emt 0:00:47]} 38. Kf1 {[%emt 0:00:51]} Rxg3 {[%emt 0:00:33]} 39. fxg3 {[%emt 0:00:09]} Qxg3 {[%emt 0:00:31]} 40. Qxe5+ {[%emt 0:00:10]} Kh7 {[%emt 0:00:32]} 41. Qf5+ {[%emt 0:00:22]} Kg7 {[%emt 0:00:14]} 42. Qg4+ {[%emt 0:00:09]} Qxg4 {[%emt 0:00:31]} 43. Bxg4 {[%emt 0:00:01]} Rh1+ {[%emt 0:00:24]} 44. Kf2 {[%emt 0:00:20]} Nd3+ {[%emt 0:00:14]} 45. Rxd3 {[%emt 0:00:08]} Rxc1 {[%emt 0:00:08]} 46. d6 {[%emt 0:00:16]} 1-0

[Event "Czech Open-E Teams 2022"]
[Site "Pardubice"]
[Date "2022.07.15"]
[Round "3.41"]
[White "Slampa, Jan"]
[Black "Bouska, Jiri"]
[Result "1-0"]
[ECO "E70"]
[WhiteElo "2254"]
[BlackElo "2157"]
[Annotator "ChessBase"]
[PlyCount "61"]
[EventDate "2022.07.14"]
[EventType "team-tourn"]
[EventCountry "CZE"]
[SourceTitle "playchess.com"]
[Source "ChessBase"]
[SourceQuality "1"]
[TimeControl "5400+30"]

1. d4 {[%emt 0:00:02]} Nf6 {[%emt 0:00:08]} 2. c4 {[%emt 0:00:03]} g6 {[%emt 0:00:07]} 3. Nc3 {[%emt 0:00:05]} Bg7 {[%emt 0:00:04]} 4. e4 {[%emt 0:00:11]} d6 {[%emt 0:00:05]} 5. Be3 {[%emt 0:00:20]} O-O {[%emt 0:00:12]} 6. h3 {[%emt 0:00:05]} c5 {[%emt 0:01:21]} 7. Nf3 {[%emt 0:00:03]} cxd4 {[%emt 0:00:24]} 8. Nxd4 {[%emt 0:00:21]} Nc6 {[%emt 0:00:19]} 9. Be2 {[%emt 0:03:03]} Bd7 {[%emt 0:00:48]} 10. O-O {[%emt 0:05:44]} Nxd4 {[%emt 0:00:33]} 11. Bxd4 {[%emt 0:00:12]} Bc6 {[%emt 0:00:05]} 12. Qc2 {[%emt 0:03:07]} a5 13. Rad1 {[%emt 0:08:46]} a4 {[%emt 0:02:18]} 14. c5 {[%emt 0:07:49]} Qa5 {[%emt 0:00:26]} 15. cxd6 {[%emt 0:06:08]} exd6 {[%emt 0:00:08]} 16. Bf3 {[%emt 0:03:13]} Rac8 {[%emt 0:05:16]} 17. Qd2 {[%emt 0:02:19]} Rfe8 {[%emt 0:10:47]} 18. Rfe1 {[%emt 0:01:23]} b5 {[%emt 0:41:45]} 19. a3 Qc7 {[%emt 0:12:14]} 20. Qf4 {[%emt 0:21:58]} Re6 {[%emt 0:03:11]} 21. Rc1 {[%emt 0:09:06]} Qd8 {[%emt 0:04:38]} 22. Red1 {[%emt 0:04:20]} Qe8 {[%emt 0:01:33]} 23. Nd5 {[%emt 0:01:49]} Nxe4 {[%emt 0:03:08]} 24. Bxe4 {[%emt 0:00:18]} Rxe4 {[%emt 0:01:14]} 25. Nf6+ {[%emt 0:00:06]} Bxf6 {[%emt 0:00:49]} 26. Qxf6 {[%emt 0:00:02]} Kf8 {[%emt 0:02:03]} 27. Qxd6+ {[%emt 0:01:34]} Qe7 {[%emt 0:02:47]} 28. Rxc6 {[%emt 0:00:42]} Rxc6 {[%emt 0:00:24]} 29. Qxc6 Rxd4 {[%emt 0:00:14]} 30. Qc8+ {[%emt 0:00:06]} Kg7 {[%emt 0:00:06]} 31. Qc3 1-0

[Event "Czech Open-E Teams 2022"]
[Site "Pardubice"]
[Date "2022.07.15"]
[Round "3.43"]
[White "Kovar, Vojtech"]
[Black "Lihotsky, Lukas"]
[Result "1-0"]
[ECO "B10"]
[WhiteElo "2191"]
[BlackElo "1935"]
[Annotator "ChessBase"]
[PlyCount "73"]
[EventDate "2022.07.14"]
[EventType "team-tourn"]
[EventCountry "CZE"]
[SourceTitle "playchess.com"]
[Source "ChessBase"]
[SourceQuality "1"]
[TimeControl "5400+30"]

1. e4 {[%emt 0:04:00]} c6 {[%emt 0:00:59]} 2. d3 {[%emt 0:00:09]} d5 {[%emt 0:00:04]} 3. Nf3 {[%emt 0:00:26]} Bg4 {[%emt 0:00:13]} 4. h3 {[%emt 0:00:17]} Bxf3 {[%emt 0:00:06]} 5. Qxf3 {[%emt 0:00:06]} e6 {[%emt 0:00:06]} 6. Nd2 {[%emt 0:01:34]} Nf6 {[%emt 0:02:33]} 7. g4 {[%emt 0:01:18]} Nfd7 {[%emt 0:18:44]} 8. h4 {[%emt 0:07:33]} Be7 {[%emt 0:01:29]} 9. Qg3 {[%emt 0:00:29]} Na6 {[%emt 0:08:02]} 10. Be2 {[%emt 0:04:23]} Nb4 {[%emt 0:03:00]} 11. Bd1 {[%emt 0:00:02]} c5 {[%emt 0:09:54]} 12. g5 {[%emt 0:08:54]} Nb6 {[%emt 0:04:30]} 13. c3 {[%emt 0:17:50]} Nc6 {[%emt 0:00:32]} 14. Bc2 {[%emt 0:00:04]} Bd6 {[%emt 0:04:14]} 15. Qg4 {[%emt 0:02:26]} Ne5 {[%emt 0:03:24]} 16. Qe2 {[%emt 0:00:06]} Ng6 {[%emt 0:01:24]} 17. h5 {[%emt 0:04:48]} Ne7 {[%emt 0:02:42]} 18. Qg4 {[%emt 0:03:51]} Qc7 {[%emt 0:04:08]} 19. Nf3 {[%emt 0:08:59]} Qd7 {[%emt 0:01:08]} 20. Be3 {[%emt 0:05:50]} f5 {[%emt 0:08:33]} 21. Qh4 {[%emt 0:04:17]} Qb5 {[%emt 0:07:44]} 22. Bc1 {[%emt 0:17:59]} a5 {[%emt 0:07:56]} 23. O-O {[%emt 0:01:02]} O-O {[%emt 0:06:22]} 24. e5 {[%emt 0:00:13]} Bc7 {[%emt 0:00:09]} 25. g6 Qe8 26. gxh7+ {[%emt 0:00:17]} Kh8 {[%emt 0:01:08]} 27. Kh1 {[%emt 0:01:13]} f4 {[%emt 0:01:24]} 28. d4 {[%emt 0:00:02]} Nf5 {[%emt 0:00:43]} 29. Qg4 {[%emt 0:00:01]} Nh6 {[%emt 0:02:06]} 30. Qh3 {[%emt 0:00:53]} Nf5 {[%emt 0:01:26]} 31. Rg1 {[%emt 0:00:17]} cxd4 {[%emt 0:00:25]} 32. cxd4 {[%emt 0:00:24]} Kxh7 {[%emt 0:00:47]} 33. Rg6 {[%emt 0:00:42]} Kh8 {[%emt 0:00:26]} 34. Bxf4 {[%emt 0:01:23]} Ne7 {[%emt 0:00:24]} 35. Be3 {[%emt 0:00:00]} Nf5 {[%emt 0:00:06]} 36. Rag1 {[%emt 0:00:00]} Nc4 {[%emt 0:01:01]} 37. h6 {[%emt 0:00:00]} 1-0

[Event "Czech Open-E Teams 2022"]
[Site "Pardubice"]
[Date "2022.07.15"]
[Round "3.44"]
[White "Stocek, Martin"]
[Black "Babicka, Michal"]
[Result "0-1"]
[ECO "E73"]
[WhiteElo "1851"]
[BlackElo "1989"]
[Annotator "ChessBase"]
[PlyCount "72"]
[EventDate "2022.07.14"]
[EventType "team-tourn"]
[EventCountry "CZE"]
[SourceTitle "playchess.com"]
[Source "ChessBase"]
[SourceQuality "1"]
[TimeControl "5400+30"]

1. d4 {[%emt 0:00:07]} Nf6 {[%emt 0:00:06]} 2. c4 {[%emt 0:00:12]} g6 {[%emt 0:00:08]} 3. Nc3 {[%emt 0:00:07]} Bg7 {[%emt 0:00:06]} 4. e4 {[%emt 0:00:06]} d6 {[%emt 0:00:10]} 5. Be2 {[%emt 0:01:20]} O-O {[%emt 0:00:08]} 6. Be3 {[%emt 0:00:07]} Nc6 {[%emt 0:04:46]} 7. g4 {[%emt 0:08:27]} e5 {[%emt 0:01:29]} 8. d5 {[%emt 0:02:56]} Nd4 {[%emt 0:01:23]} 9. g5 {[%emt 0:03:59]} Nxe2 {[%emt 0:02:36]} 10. Ngxe2 {[%emt 0:14:54]} Nh5 {[%emt 0:00:17]} 11. Qd2 {[%emt 0:02:00]} f5 {[%emt 0:06:48]} 12. gxf6 {[%emt 0:07:06]} Qxf6 {[%emt 0:00:51]} 13. O-O-O {[%emt 0:03:17]} Bg4 {[%emt 0:07:10]} 14. Rhg1 {[%emt 0:04:30]} Bf3 {[%emt 0:01:16]} 15. Rde1 {[%emt 0:18:22]} a6 {[%emt 0:01:59]} 16. Bg5 {[%emt 0:01:38]} Qf7 {[%emt 0:00:45]} 17. Qe3 {[%emt 0:05:17]} Bxe2 {[%emt 0:02:46]} 18. Rxe2 {[%emt 0:00:41]} b5 {[%emt 0:04:49]} 19. c5 {[%emt 0:09:47]} Nf4 {[%emt 0:01:49]} 20. Rd2 {[%emt 0:03:02]} dxc5 {[%emt 0:04:01]} 21. Bxf4 {[%emt 0:01:39]} Qxf4 {[%emt 0:00:29]} 22. Qxf4 {[%emt 0:02:26]} Rxf4 {[%emt 0:00:01]} 23. Re2 {[%emt 0:00:55]} Raf8 {[%emt 0:02:43]} 24. Rg2 {[%emt 0:00:06]} Rh4 {[%emt 0:10:17]} 25. a3 {[%emt 0:01:41]} Rff4 {[%emt 0:03:02]} 26. b4 {[%emt 0:01:38]} Bf8 {[%emt 0:02:48]} 27. Rb2 {[%emt 0:01:06]} Rh3 {[%emt 0:03:03]} 28. Kc2 {[%emt 0:01:03]} Rhf3 {[%emt 0:00:40]} 29. Kb3 {[%emt 0:01:03]} cxb4 {[%emt 0:02:12]} 30. axb4 {[%emt 0:00:06]} Rxe4 {[%emt 0:00:11]} 31. Kc2 {[%emt 0:01:04]} Rc4 {[%emt 0:00:07]} 32. Rb3 {[%emt 0:00:03]} Bxb4 {[%emt 0:00:20]} 33. Rg3 {[%emt 0:00:10]} Rcxc3+ {[%emt 0:00:28]} 34. Rxc3 {[%emt 0:00:08]} Rxc3+ {[%emt 0:00:05]} 35. Rxc3 {[%emt 0:00:05]} Bxc3 {[%emt 0:00:04]} 36. Kxc3 {[%emt 0:00:04]} a5 {[%emt 0:00:05]} 0-1

[Event "Czech Open-E Teams 2022"]
[Site "Pardubice"]
[Date "2022.07.16"]
[Round "4.2"]
[White "Urban, Tomas"]
[Black "Vlasak, Lukas"]
[Result "0-1"]
[ECO "A45"]
[WhiteElo "1815"]
[BlackElo "2442"]
[Annotator "ChessBase"]
[PlyCount "50"]
[EventDate "2022.07.14"]
[EventType "team-tourn"]
[EventCountry "CZE"]
[SourceTitle "playchess.com"]
[Source "ChessBase"]
[SourceQuality "1"]
[TimeControl "5400+30"]

1. d4 {[%emt 0:00:08]} Nf6 {[%emt 0:00:33]} 2. Bf4 {[%emt 0:00:53]} g6 {[%emt 0:02:43]} 3. Nc3 {[%emt 0:01:37]} d5 {[%emt 0:00:15]} 4. f3 {[%emt 0:03:50]} c5 {[%emt 0:02:57]} 5. e4 {[%emt 0:01:03]} dxe4 {[%emt 0:02:27]} 6. d5 {[%emt 0:01:34]} Qa5 {[%emt 0:09:37]} 7. Qd2 {[%emt 0:03:41]} e3 {[%emt 0:01:40]} 8. Bxe3 {[%emt 0:05:04]} Bg7 {[%emt 0:01:10]} 9. Bb5+ {[%emt 0:06:01]} Bd7 {[%emt 0:01:12]} 10. Bxd7+ {[%emt 0:01:08]} Nbxd7 {[%emt 0:00:28]} 11. O-O-O {[%emt 0:06:43]} b5 {[%emt 0:04:40]} 12. Kb1 {[%emt 0:07:53]} b4 {[%emt 0:04:31]} 13. Ne4 {[%emt 0:01:31]} O-O {[%emt 0:03:46]} 14. Nh3 {[%emt 0:04:48]} Rfd8 {[%emt 0:04:43]} 15. Qf2 {[%emt 0:07:59]} Rab8 {[%emt 0:05:14]} 16. d6 {[%emt 0:06:36]} Nxe4 {[%emt 0:09:01]} 17. fxe4 {[%emt 0:00:48]} exd6 {[%emt 0:00:11]} 18. Rxd6 {[%emt 0:00:38]} Ne5 {[%emt 0:00:08]} 19. Rxd8+ {[%emt 0:04:35]} Rxd8 {[%emt 0:00:19]} 20. Rf1 {[%emt 0:02:11]} Qc7 {[%emt 0:04:34]} 21. Qh4 {[%emt 0:05:26]} Rd7 {[%emt 0:04:22]} 22. Nf4 {[%emt 0:02:13]} Nc4 {[%emt 0:00:49]} 23. Nd5 {[%emt 0:04:02]} Qe5 {[%emt 0:01:37]} 24. c3 {[%emt 0:06:35]} bxc3 {[%emt 0:00:27]} 25. bxc3 {[%emt 0:11:55]} Nxe3 {[%emt 0:00:54]} 0-1

[Event "Czech Open-E Teams 2022"]
[Site "Pardubice"]
[Date "2022.07.16"]
[Round "4.3"]
[White "Kraus, Tomas"]
[Black "Svadlenka, Jaroslav"]
[Result "1-0"]
[ECO "A27"]
[WhiteElo "2488"]
[BlackElo "1872"]
[Annotator "ChessBase"]
[PlyCount "52"]
[EventDate "2022.07.14"]
[EventType "team-tourn"]
[EventCountry "CZE"]
[SourceTitle "playchess.com"]
[Source "ChessBase"]
[SourceQuality "1"]
[TimeControl "5400+30"]

1. c4 {[%emt 0:00:16]} e5 {[%emt 0:00:26]} 2. Nc3 {[%emt 0:00:12]} Nc6 {[%emt 0:00:27]} 3. Nf3 {[%emt 0:00:14]} d6 {[%emt 0:00:12]} 4. d4 {[%emt 0:00:16]} exd4 {[%emt 0:00:06]} 5. Nxd4 {[%emt 0:00:20]} Nf6 {[%emt 0:00:30]} 6. g3 {[%emt 0:01:24]} Be7 {[%emt 0:01:58]} 7. Nxc6 {[%emt 0:00:12]} bxc6 {[%emt 0:00:04]} 8. Bg2 {[%emt 0:00:30]} Bb7 {[%emt 0:02:17]} 9. e4 {[%emt 0:01:52]} O-O {[%emt 0:01:03]} 10. O-O {[%emt 0:01:14]} Qd7 {[%emt 0:01:21]} 11. Re1 Rad8 {[%emt 0:00:00]} 12. Qa4 {[%emt 0:05:05]} a6 {[%emt 0:01:07]} 13. Bf4 {[%emt 0:12:55]} Nh5 {[%emt 0:04:21]} 14. Be3 {[%emt 0:07:29]} Nf6 {[%emt 0:07:09]} 15. h3 {[%emt 0:04:43]} Qc8 {[%emt 0:03:34]} 16. Rad1 {[%emt 0:01:28]} Qa8 {[%emt 0:00:49]} 17. Qa5 {[%emt 0:02:50]} Rc8 {[%emt 0:05:21]} 18. c5 {[%emt 0:04:07]} Nd7 {[%emt 0:01:11]} 19. Na4 {[%emt 0:03:23]} d5 {[%emt 0:05:06]} 20. f4 {[%emt 0:04:48]} Rfe8 {[%emt 0:07:37]} 21. Nc3 Nf6 22. e5 {[%emt 0:02:57]} Nd7 {[%emt 0:01:35]} 23. Bf2 {[%emt 0:06:37]} Bf8 {[%emt 0:00:26]} 24. h4 {[%emt 0:05:33]} Rcd8 {[%emt 0:01:07]} 25. b4 {[%emt 0:02:55]} Qb8 {[%emt 0:01:34]} 26. Qa4 {[%emt 0:01:20]} Qa8 {[%emt 0:01:57]} 1-0